bitfinex/quotes_BTCUSD_20251230
["timestamp","ask_amount","ask_price","bid_price","bid_amount"]
[1767111685052,0.000549,89371.0,89358.0,0.0448]
[1767111685251,0.000549,89371.0,89359.0,0.01144]
[1767111685504,0.29633,89376.0,89346.0,0.0128]
[1767111685703,0.29633,89376.0,89343.0,0.01119281]
[1767111685704,0.29633,89369.0,89351.0,0.05624]
[1767111686143,0.29633,89383.0,89352.0,0.0128]
[1767111686341,0.29633,89383.0,89369.0,0.00055]
[1767111686542,0.29633,89383.0,89370.0,0.01144]
[1767111686743,0.2966028,89383.0,89370.0,0.01144]
[1767111687555,3.38e-06,89387.0,89383.0,0.0002772]
[1767111687708,3.38e-06,89387.0,89384.0,0.01144]
[1767111688078,3.38e-06,89387.0,89385.0,0.01144]
[1767111688199,3.38e-06,89387.0,89375.0,0.10074398]
[1767111688200,3.38e-06,89387.0,89386.0,0.01144]
[1767111688593,3.38e-06,89387.0,89386.0,0.011168]
[1767111689007,0.29633,89386.0,89382.0,0.01144]
[1767111689243,0.29633,89386.0,89382.0,0.01089]
[1767111689450,3.38e-06,89387.0,89382.0,0.01089]
[1767111690860,0.29633338,89387.0,89383.0,0.01144]
[1767111691057,0.05,89388.0,89383.0,0.01144]
[1767111691302,0.04945,89388.0,89383.0,0.01144]
[1767111691704,0.000682,89422.0,89398.0,0.05592966]
[1767111691899,0.000682,89422.0,89399.0,0.2845958]
[1767111692100,0.000682,89422.0,89399.0,0.27341]
[1767111692101,0.00030636,89419.0,89399.0,0.27341]
[1767111692300,0.00030636,89419.0,89401.0,0.01118555]
[1767111692508,0.00030636,89419.0,89400.0,0.06742568]
[1767111692708,0.00030636,89419.0,89401.0,0.27341]
[1767111693094,0.00030636,89419.0,89402.0,0.05624]
[1767111694258,0.29633,89418.0,89399.0,0.01144]
[1767111694661,0.00030636,89419.0,89413.0,0.01118405]
[1767111694845,0.29633,89449.0,89417.0,0.27341]
[1767111695045,0.01144,89446.0,89418.0,0.01144]
[1767111695245,0.01144,89448.0,89419.0,0.05591652]
[1767111695486,0.29633,89449.0,89418.0,0.34076676]
[1767111695662,0.29633,89449.0,89427.0,0.0111823]
[1767111696030,0.29633,89449.0,89408.0,0.0448]
[1767111696031,0.29633,89449.0,89428.0,0.01144]
[1767111696265,0.29633,89449.0,89435.0,0.0111813]
[1767111696473,9.7e-07,89444.0,89432.0,0.26111]
[1767111696677,9.7e-07,89444.0,89434.0,0.01118142]
[1767111696880,9.7e-07,89444.0,89430.0,0.01118193]
[1767111697032,9.7e-07,89444.0,89429.0,0.01144]
[1767111697233,0.000549,89430.0,89429.0,0.01144]
[1767111697410,9.7e-07,89444.0,89429.0,0.01144]
[1767111698447,9.7e-07,89444.0,89416.0,0.01118368]
[1767111698448,9.7e-07,89444.0,89411.0,0.26027]
[1767111698676,9.7e-07,89444.0,89412.0,0.01144]
[1767111698677,0.00055,89429.0,89412.0,0.01144]
[1767111699085,0.00055,89429.0,89399.0,0.26027]
[1767111699086,0.29633,89429.0,89399.0,0.26027]
[1767111699286,0.29633,89429.0,89403.0,0.26027]
[1767111699488,0.79137157,89430.0,89403.0,0.26027]
[1767111699691,0.79137157,89420.0,89400.0,0.01144]
[1767111699899,0.29633,89426.0,89400.0,0.01144]
[1767111700146,0.80281157,89430.0,89401.0,0.26027]
[1767111700346,0.29633,89429.0,89400.0,0.01144]
[1767111700922,0.29633,89429.0,89402.0,0.01118543]
[1767111701124,0.29633,89429.0,89402.0,0.00618543]
[1767111701368,0.29633,89429.0,89408.0,0.01118468]
[1767111701552,0.01144,89436.0,89409.0,0.02262455]
[1767111701798,0.29633,89435.0,89409.0,0.01144]
[1767111702006,0.29633,89429.0,89409.0,0.01144]
[1767111702226,0.79137157,89420.0,89409.0,0.01144]
[1767111702478,0.29633,89429.0,89409.0,0.01144]
[1767111702716,0.29633,89429.0,89384.0,0.22375256]
[1767111702717,0.29633,89419.0,89401.0,0.01144]
[1767111702918,0.29633,89411.0,89387.0,0.00060139]
[1767111703202,0.29633,89411.0,89388.0,0.01144]
[1767111703353,0.29633,89411.0,89391.0,0.0111868]
[1767111703547,0.01144,89420.0,89394.0,0.27225]
[1767111703790,0.29633,89425.0,89394.0,0.27225]
[1767111704190,0.29643632,89425.0,89394.0,0.27225]
[1767111705595,0.02685949,89425.0,89376.0,0.22377355]
[1767111705853,0.00055,89394.0,89372.0,0.04476]
[1767111706079,0.29633,89394.0,89366.0,0.04476]
[1767111706253,0.29633,89394.0,89377.0,0.0002]
[1767111706418,0.29633,89394.0,89378.0,0.01144]
[1767111707029,0.29633,89394.0,89378.0,0.01154638]
[1767111707944,0.2982,89389.0,89378.0,0.01154638]
[1767111708172,0.2982,89389.0,89354.0,0.01119144]
[1767111708173,0.00055,89378.0,89351.0,0.27703]
[1767111708377,0.0002,89397.0,89351.0,0.27703]
[1767111708378,0.83618089,89380.0,89354.0,0.28822144]
[1767111708576,0.83618089,89380.0,89354.0,0.27703]
[1767111708849,0.83618089,89380.0,89356.0,0.01119119]
[1767111709011,0.2982,89389.0,89370.0,0.01118943]
[1767111709226,0.01144,89394.0,89380.0,0.000549]
[1767111709428,0.2984,89397.0,89372.0,0.01118918]
[1767111709671,0.2984,89397.0,89382.0,0.01118793]
[1767111709672,0.0002,89397.0,89382.0,0.01118793]
[1767111709886,0.0002,89397.0,89383.0,0.01144]
[1767111710097,0.2982,89408.0,89383.0,0.01144]
[1767111710430,0.53798089,89400.0,89383.0,0.01144]
[1767111710621,0.83618089,89400.0,89383.0,0.01144]
[1767111710760,0.0001063,89408.0,89383.0,0.01144]
[1767111710967,0.2983063,89408.0,89383.0,0.01144]
[1767111711163,0.2983063,89408.0,89383.0,0.0226278]
[1767111711372,0.2983063,89408.0,89383.0,0.01144]
[1767111711570,0.00054148,89423.0,89408.0,0.0002427]
[1767111711794,0.29874148,89423.0,89408.0,0.0116827]
[1767111712168,0.29874148,89423.0,89408.0,0.01144]
[1767111712398,0.00054148,89423.0,89411.0,0.0111843]
[1767111712609,0.00054148,89423.0,89408.0,0.01144]
[1767111712848,0.00054148,89423.0,89412.0,0.01118418]
[1767111712849,0.00029848,89423.0,89412.0,0.01118418]
[1767111713062,0.00029848,89423.0,89410.0,0.01118443]
[1767111713293,0.00029848,89423.0,89409.0,0.01118455]
[1767111713462,0.00029848,89423.0,89408.0,0.01144]
[1767111714195,0.00029848,89423.0,89402.0,0.06711257]
[1767111714382,0.00029848,89423.0,89403.0,0.01144]
[1767111714383,0.2982,89419.0,89403.0,0.01144]
[1767111714593,0.00029848,89423.0,89403.0,0.0115463]
[1767111715031,0.29849848,89423.0,89403.0,0.0115463]
[1767111715985,0.00029848,89423.0,89406.0,0.01118493]
[1767111716190,0.00029848,89423.0,89410.0,0.01118443]
[1767111716453,0.00029848,89423.0,89408.0,0.01118468]
[1767111716633,0.00029848,89423.0,89410.0,0.01118443]
[1767111717025,0.00029848,89423.0,89410.0,0.06710601]
[1767111717244,0.00029848,89423.0,89411.0,0.0111843]
[1767111717597,0.00029848,89423.0,89412.0,0.01144]
[1767111717808,0.00029848,89423.0,89412.0,0.02262418]
[1767111718011,0.00029848,89423.0,89412.0,0.07854451]
[1767111718164,0.00029848,89423.0,89412.0,0.01144]
[1767111718787,0.00029848,89423.0,89412.0,0.02262418]
[1767111719010,0.00029848,89423.0,89412.0,0.01144]
[1767111719366,0.00029848,89423.0,89412.0,0.02262418]
[1767111719796,9.7e-07,89444.0,89412.0,0.02262418]
[1767111719797,9.7e-07,89444.0,89421.0,0.01118305]
[1767111719954,9.7e-07,89444.0,89422.0,0.0114]
[1767111720801,9.7e-07,89444.0,89423.0,0.0111828]
[1767111720998,9.7e-07,89444.0,89426.0,0.01118243]
[1767111721440,9.7e-07,89444.0,89435.0,0.0111813]
[1767111721621,9.7e-07,89444.0,89438.0,0.01118092]
[1767111721818,9.7e-07,89444.0,89436.0,0.02258117]
[1767111722141,9.7e-07,89444.0,89436.0,0.0114]
[1767111722336,0.000549,89436.0,89419.0,0.0111833]
[1767111722540,9.7e-07,89444.0,89417.0,0.29202355]
[1767111722756,0.00010636,89436.0,89410.0,0.53798089]
[1767111722968,0.28529,89429.0,89398.0,0.28084]
[1767111723170,0.28529,89429.0,89379.0,0.07831086]
[1767111723171,0.28529,89429.0,89404.0,0.01118518]
[1767111723373,0.28529,89429.0,89405.0,0.05616]
[1767111723574,0.28529,89429.0,89406.0,0.01118493]
[1767111724024,0.28529,89429.0,89401.0,0.33676767]
[1767111724025,0.28529,89429.0,89401.0,0.28084]
[1767111724239,0.28529,89429.0,89412.0,0.01118418]
[1767111724442,0.00010636,89436.0,89417.0,0.28084]
[1767111724599,0.00010636,89436.0,89410.0,0.53798089]
[1767111724798,0.000549,89417.0,89411.0,0.05616]
[1767111725006,0.000549,89417.0,89406.0,0.01118493]
[1767111725205,0.28529,89434.0,89412.0,0.0114]
[1767111726208,0.28529,89434.0,89412.0,0.02258418]
[1767111726411,0.00010636,89436.0,89413.0,0.07384953]
[1767111726642,0.00010636,89436.0,89412.0,0.0114]
[1767111726643,0.28539636,89436.0,89412.0,0.0114]
[1767111726818,0.28539636,89436.0,89413.0,0.0114]
[1767111727011,0.00010636,89436.0,89423.0,0.0111828]
[1767111727236,9.7e-07,89444.0,89430.0,0.01118193]
[1767111727474,9.7e-07,89444.0,89424.0,0.29224]
[1767111727672,9.7e-07,89444.0,89429.0,0.01118205]
[1767111727834,9.7e-07,89444.0,89427.0,0.0111823]
[1767111728099,9.7e-07,89444.0,89424.0,0.29234636]
[1767111728100,9.7e-07,89444.0,89424.0,0.00010636]
[1767111728260,0.28529,89435.0,89425.0,0.0114]
[1767111728482,0.28529,89435.0,89424.0,0.00010636]
[1767111728847,0.28529,89435.0,89425.0,0.0114]
[1767111729080,0.28529,89435.0,89424.0,0.00010636]
[1767111729081,0.28529,89435.0,89426.0,0.0114]
[1767111729302,0.001099,89425.0,89424.0,0.00010636]
[1767111729506,0.28529,89435.0,89424.0,0.01150636]
[1767111729718,9.7e-07,89444.0,89424.0,0.01150636]
[1767111730486,0.28529,89442.0,89424.0,0.00010636]
[1767111730687,0.82327089,89440.0,89425.0,0.010301]
[1767111730847,0.28529,89440.0,89425.0,0.010301]
[1767111731249,0.28529,89440.0,89424.0,0.00010636]
[1767111731449,0.28529,89440.0,89425.0,0.0114]
[1767111731685,0.28529,89439.0,89426.0,0.0114]
[1767111732309,9.7e-07,89444.0,89426.0,0.0114]
[1767111732510,9.7e-07,89444.0,89424.0,0.00010636]
[1767111733042,9.7e-07,89444.0,89425.0,0.0114]
[1767111734248,0.08232816,89444.0,89426.0,0.05616]
[1767111734686,0.08232816,89444.0,89424.0,0.00010636]
[1767111734846,0.28529,89439.0,89425.0,0.04476]
[1767111735047,9.7e-07,89444.0,89426.0,0.0114]
[1767111735246,9.7e-07,89444.0,89430.0,0.54916282]
[1767111735459,9.7e-07,89444.0,89430.0,0.01118193]
[1767111735674,9.7e-07,89444.0,89429.0,0.29202205]
[1767111735873,9.7e-07,89444.0,89431.0,0.0111818]
[1767111736101,9.7e-07,89444.0,89426.0,0.0114]
[1767111736306,9.7e-07,89444.0,89424.0,0.27279636]
[1767111736644,9.7e-07,89444.0,89425.0,0.05616]
[1767111736855,9.7e-07,89444.0,89424.0,0.00010636]
[1767111737066,0.36416319,89443.0,89425.0,0.05616]
[1767111737293,0.28215,89442.0,89425.0,0.05616]
[1767111737497,0.28215,89442.0,89426.0,0.05616]
[1767111737697,0.28215,89439.0,89424.0,0.00010636]
[1767111738114,0.28215,89439.0,89425.0,0.0114]
[1767111738311,0.06494451,89438.0,89425.0,0.0114]
[1767111738516,0.06494451,89438.0,89424.0,0.00010636]
[1767111738689,0.28215,89433.0,89424.0,0.00010636]
[1767111738895,0.28215,89433.0,89424.0,0.0114]
[1767111739928,0.28215,89433.0,89404.0,0.06711061]
[1767111740099,0.28215,89433.0,89406.0,0.05616]
[1767111740323,0.28215,89433.0,89407.0,0.0111848]
[1767111740505,0.53798089,89440.0,89390.0,1.19e-06]
[1767111740506,0.53798089,89417.0,89390.0,1.19e-06]
[1767111740707,0.2933353,89403.0,89373.0,0.27269]
[1767111740910,0.2933353,89403.0,89371.0,0.05616]
[1767111740911,0.28215,89393.0,89371.0,0.05616]
[1767111741106,0.28215,89393.0,89371.0,0.32885]
[1767111741332,0.53798089,89400.0,89372.0,0.0114]
[1767111741333,0.53798089,89381.0,89372.0,0.0114]
[1767111741708,0.82013089,89381.0,89372.0,0.0114]
[1767111741931,0.28215,89381.0,89372.0,0.0114]
[1767111742285,0.0002,89383.0,89372.0,0.0114]
[1767111742687,0.0002,89383.0,89363.0,0.0002]
[1767111742688,0.28215,89381.0,89363.0,0.0002]
[1767111742927,0.28215,89378.0,89363.0,0.0002]
[1767111743150,0.28215,89378.0,89364.0,0.0114]
[1767111743354,0.0002,89383.0,89378.0,0.000549]
[1767111743580,0.0002,89383.0,89360.0,0.53798089]
[1767111743581,0.28215,89362.0,89320.0,0.000682]
[1767111743784,0.05616,89382.0,89320.0,0.000682]
[1767111743785,0.28215,89341.0,89320.0,0.000682]
[1767111743936,0.28215,89341.0,89290.0,0.10001789]
[1767111743937,0.28215,89341.0,89318.0,2e-06]
[1767111743938,0.28215,89334.0,89318.0,2e-06]
[1767111744135,0.01154231,89339.0,89318.0,2e-06]
[1767111744136,0.282499,89339.0,89318.0,2e-06]
[1767111744374,0.01119344,89338.0,89318.0,2e-06]
[1767111744539,0.01119357,89337.0,89318.0,2e-06]
[1767111744738,0.28215,89337.0,89318.0,0.00035681]
[1767111744941,0.53798089,89330.0,89318.0,8.1e-07]
[1767111745203,0.01119469,89328.0,89318.0,8.1e-07]
[1767111745408,0.28215,89321.0,89318.0,8.1e-07]
[1767111745732,0.53798089,89340.0,89318.0,8.1e-07]
[1767111745934,0.01144,89339.0,89321.0,0.000356]
[1767111746157,0.01144,89339.0,89318.0,8.1e-07]
[1767111746361,0.01119344,89338.0,89318.0,8.1e-07]
[1767111746564,0.07860045,89339.0,89284.0,0.27269]
[1767111746565,0.28215,89336.0,89284.0,0.27269]
[1767111746790,0.28215,89328.0,89291.0,0.27269]
[1767111747201,0.28215,89328.0,89291.0,0.2730051]
[1767111747202,0.01119482,89327.0,89291.0,0.2730051]
[1767111747400,0.82013089,89320.0,89293.0,0.27269]
[1767111747623,0.53798089,89310.0,89291.0,0.0003151]
[1767111747796,0.53798089,89310.0,89292.0,0.01144]
[1767111747993,0.53798089,89310.0,89292.0,0.0003151]
[1767111748353,0.53798089,89310.0,89293.0,0.01144]
[1767111748694,0.82013089,89310.0,89293.0,0.01144]
[1767111748877,0.000193,89293.0,89292.0,0.0003151]
[1767111749113,0.000193,89293.0,89290.0,0.01144]
[1767111749316,0.28215,89302.0,89284.0,0.00010647]
[1767111749582,0.01144,89307.0,89284.0,0.00010647]
[1767111749886,0.28215,89299.0,89284.0,0.00010647]
[1767111750047,0.28215,89299.0,89284.0,4.7e-07]
[1767111750249,0.01144,89307.0,89284.0,4.7e-07]
[1767111750447,0.28356,89307.0,89284.0,4.7e-07]
[1767111750648,0.53798089,89300.0,89284.0,4.7e-07]
[1767111750862,0.27212,89299.0,89284.0,4.7e-07]
[1767111751268,0.27212,89293.0,89274.0,0.0004]
[1767111751429,0.27212,89307.0,89293.0,0.000462]
[1767111751633,0.27212,89307.0,89284.0,0.01144]
[1767111752494,0.08215409,89306.0,89284.0,0.01144]
[1767111752878,0.01144,89312.0,89284.0,0.01144]
[1767111753259,0.27212,89311.0,89276.0,0.29229]
[1767111753659,0.27212,89311.0,89261.0,0.0114031]
[1767111753660,0.000549,89276.0,89263.0,0.0448]
[1767111753847,0.000549,89276.0,89265.0,0.01144]
[1767111754215,0.53798089,89280.0,89261.0,0.0002]
[1767111754456,0.27212,89313.0,89280.0,0.00055]
[1767111754669,0.53798089,89300.0,89278.0,0.29229]
[1767111754826,0.27212,89299.0,89281.0,0.01144]
[1767111755033,0.02778948,89312.0,89281.0,0.01144]
[1767111755034,0.27212,89312.0,89285.0,0.01120008]
[1767111755233,0.27212,89312.0,89287.0,0.01119983]
[1767111755452,0.27212,89312.0,89284.0,0.29229]
[1767111755656,0.02722262,89311.0,89284.0,0.29229]
[1767111755856,0.02722262,89311.0,89282.0,0.01120046]
[1767111755857,0.27212,89309.0,89281.0,0.01144]
[1767111756398,0.53798089,89300.0,89282.0,0.01144]
[1767111756756,0.27212,89301.0,89282.0,0.01144]
[1767111756956,0.27212,89301.0,89288.0,0.01119971]
[1767111757179,0.27212,89312.0,89301.0,0.00055]
[1767111757383,0.27212,89312.0,89282.0,0.31493046]
[1767111757559,0.30048662,89312.0,89282.0,0.30373]
[1767111757944,0.30048662,89312.0,89286.0,0.06719951]
[1767111758146,0.00010617,89313.0,89290.0,0.53798089]
[1767111758375,0.27048164,89321.0,89293.0,0.01119908]
[1767111758569,0.27212,89332.0,89301.0,0.29229]
[1767111758775,0.27212,89332.0,89305.0,0.29229]
[1767111759008,0.323602,89332.0,89307.0,0.29229]
[1767111759253,0.323602,89332.0,89295.0,0.06719269]
[1767111759254,0.27212,89329.0,89294.0,0.29229]
[1767111759394,0.53798089,89320.0,89295.0,0.01144]
[1767111759595,0.81010089,89330.0,89295.0,0.34853]
[1767111760130,0.81010089,89330.0,89301.0,0.29229]
[1767111760484,0.27212,89329.0,89293.0,0.00010617]
[1767111760923,0.27212,89329.0,89294.0,0.05624]
[1767111761282,0.27212,89329.0,89294.0,0.06743896]
[1767111761504,0.27212,89329.0,89297.0,0.01119858]
[1767111761737,0.27212,89329.0,89295.0,0.06719298]
[1767111761924,0.08215409,89328.0,89298.0,0.29229]
[1767111762106,0.27212,89327.0,89299.0,0.01119833]
[1767111762304,0.27212,89327.0,89298.0,0.30348845]
[1767111762504,0.27212,89327.0,89298.0,0.29229]
[1767111764712,0.27212,89327.0,89299.0,0.01119833]
[1767111764935,0.01144,89332.0,89303.0,0.01119783]
[1767111765137,0.028356,89331.0,89304.0,0.30373]
[1767111765568,0.53798089,89330.0,89305.0,0.05624]
[1767111765775,0.000105,89305.0,89294.0,0.29229]
[1767111765965,0.27212,89328.0,89294.0,0.29229]
[1767111766140,0.28903,89319.0,89295.0,0.01144]
[1767111767845,0.28903,89319.0,89286.0,0.28187]
[1767111768273,0.53798089,89303.0,89294.0,0.01144]
[1767111768450,0.0002,89303.0,89294.0,0.01144]
[1767111769632,9.5e-05,89303.0,89294.0,0.01144]
[1767111770025,0.289125,89303.0,89295.0,0.01144]
[1767111770327,9.5e-05,89303.0,89295.0,1e-06]
[1767111770525,0.0114,89320.0,89295.0,1e-06]
[1767111770526,0.28903,89319.0,89295.0,1e-06]
[1767111771027,0.0114,89320.0,89295.0,1e-06]
[1767111771028,0.32346227,89318.0,89295.0,1e-06]
[1767111771184,0.0114,89320.0,89295.0,1e-06]
[1767111771185,0.28903,89316.0,89295.0,1e-06]
[1767111771385,0.03444583,89315.0,89295.0,1e-06]
[1767111771610,0.01043563,89314.0,89295.0,1e-06]
[1767111771837,0.02404146,89315.0,89295.0,0.281871]
[1767111772028,0.28903,89316.0,89295.0,0.281871]
[1767111772200,0.03452924,89315.0,89295.0,0.281871]
[1767111772411,0.01045161,89314.0,89295.0,0.281871]
[1767111772766,0.01045161,89313.0,89295.0,0.281871]
[1767111772972,0.01045161,89312.0,89295.0,0.281871]
[1767111773178,0.02407763,89315.0,89312.0,0.000549]
[1767111773306,0.02974401,89323.0,89313.0,0.0114]
[1767111773538,0.28903,89327.0,89313.0,0.0114]
[1767111773539,0.01046882,89322.0,89313.0,0.0114]
[1767111773806,0.02974401,89325.0,89313.0,0.0114]
[1767111774001,0.02974401,89326.0,89313.0,0.0114]
[1767111774192,0.01046892,89325.0,89313.0,0.0114]
[1767111774400,0.01047335,89324.0,89313.0,0.0114]
[1767111774604,0.28903,89327.0,89313.0,0.0114]
[1767111774605,0.02974401,89325.0,89313.0,0.0114]
[1767111774810,0.01047348,89324.0,89313.0,0.00304254]
[1767111775006,0.29950348,89323.0,89313.0,0.00249254]
[1767111775209,0.28903,89321.0,89298.0,0.28187]
[1767111775449,0.79058316,89310.0,89293.0,1.7e-07]
[1767111775667,0.02187348,89320.0,89293.0,1.7e-07]
[1767111775668,0.01047348,89309.0,89295.0,0.0114]
[1767111775843,0.01047348,89308.0,89295.0,0.0114]
[1767111776048,0.01047348,89307.0,89295.0,0.0114]
[1767111776256,0.01047348,89306.0,89295.0,0.0114]
[1767111776410,0.02974401,89311.0,89295.0,0.0114]
[1767111776411,0.01047348,89305.0,89295.0,0.0114]
[1767111776593,0.01047348,89304.0,89295.0,0.0114]
[1767111776789,0.01047348,89303.0,89295.0,0.0114]
[1767111777030,0.01047712,89302.0,89295.0,0.0114]
[1767111777281,0.01047712,89301.0,89295.0,0.0114]
[1767111777454,0.01047839,89300.0,89295.0,0.0114]
[1767111777654,0.02974401,89309.0,89295.0,0.0114]
[1767111777828,0.04022246,89308.0,89300.0,0.000549]
[1767111778034,0.01047845,89307.0,89295.0,0.0114]
[1767111778258,0.01047845,89306.0,89295.0,0.0114]
[1767111778463,0.01047845,89305.0,89295.0,0.0114]
[1767111778749,0.01047845,89304.0,89295.0,0.0114]
[1767111779108,0.01047845,89303.0,89295.0,0.0114]
[1767111779396,0.31877401,89309.0,89295.0,0.0114]
[1767111779397,0.01047845,89302.0,89295.0,0.0114]
[1767111779635,0.00992945,89301.0,89295.0,0.0114]
[1767111779836,0.02974401,89310.0,89295.0,0.0114]
[1767111780328,0.02974401,89309.0,89295.0,0.0114]
[1767111781513,0.02974401,89312.0,89309.0,0.00055]
[1767111781714,0.02974401,89312.0,89295.0,0.0114]
[1767111781715,0.03965868,89319.0,89307.0,0.0114]
[1767111781922,0.29712,89335.0,89312.0,0.27173]
[1767111782256,0.29712,89335.0,89305.0,0.01119758]
[1767111782257,1.08770316,89322.0,89305.0,0.0114]
[1767111782414,0.29712,89319.0,89293.0,1.7e-07]
[1767111782616,0.29712,89311.0,89294.0,0.01144]
[1767111782855,0.01144,89316.0,89294.0,0.01144]
[1767111783055,0.01144,89316.0,89295.0,0.27173]
[1767111783200,0.29712,89314.0,89294.0,0.01144]
[1767111783604,0.01144,89316.0,89294.0,0.28317]
[1767111783804,0.29712,89315.0,89294.0,0.28317]
[1767111785150,0.29712,89309.0,89294.0,0.01144]
[1767111785360,0.000549,89294.0,89283.0,0.0002]
[1767111785582,0.000549,89294.0,89284.0,0.01144]
[1767111786011,0.32128969,89303.0,89284.0,0.01144]
[1767111786163,0.29712,89301.0,89284.0,0.01144]
[1767111786379,0.32128969,89300.0,89284.0,0.01144]
[1767111786576,0.32128969,89299.0,89284.0,0.01144]
[1767111786804,0.02416969,89298.0,89284.0,0.01144]
[1767111786978,0.00010641,89303.0,89284.0,0.01144]
[1767111787184,0.29722641,89303.0,89284.0,0.01144]
[1767111787383,0.32128969,89302.0,89284.0,0.01144]
[1767111787587,0.02416969,89301.0,89284.0,0.01144]
[1767111788707,0.29712,89299.0,89284.0,0.01055851]
[1767111788884,0.29712,89299.0,89283.0,0.0002]
[1767111788885,0.02416969,89298.0,89283.0,0.0002]
[1767111789088,0.02416969,89298.0,89283.0,0.01164]
[1767111789290,0.32128969,89298.0,89280.0,0.0114]
[1767111789507,0.0002,89293.0,89277.0,0.27173]
[1767111789732,0.0002,89293.0,89273.0,0.0002]
[1767111789733,0.000899,89277.0,89273.0,0.0002]
[1767111789883,0.000899,89277.0,89267.0,0.04484]
[1767111789884,0.000899,89277.0,89268.0,0.0114]
[1767111790092,0.02416969,89282.0,89267.0,0.27173]
[1767111790302,0.29712,89290.0,89267.0,0.27173]
[1767111790303,0.02416969,89289.0,89267.0,0.27173]
[1767111790506,0.05745866,89289.0,89267.0,0.27173]
[1767111790876,0.35457866,89289.0,89267.0,0.27173]
[1767111791073,0.02416969,89288.0,89267.0,0.27173]
[1767111791297,0.32128969,89288.0,89267.0,0.27173]
[1767111791498,0.29712,89286.0,89266.0,0.0114]
[1767111791865,0.29712,89284.0,89266.0,0.0114]
[1767111791982,0.29712,89282.0,89266.0,0.0114]
[1767111792195,0.29712,89280.0,89266.0,0.0114]
[1767111792403,0.30760077,89279.0,89265.0,0.0114]
[1767111792628,0.29712,89277.0,89265.0,0.0114]
[1767111792833,0.01048077,89276.0,89265.0,0.0114]
[1767111793036,0.0002,89293.0,89277.0,0.001099]
[1767111793375,0.29732,89293.0,89277.0,0.001099]
[1767111793586,0.29712,89289.0,89264.0,0.00086459]
[1767111793711,0.29712,89287.0,89264.0,0.01226459]
[1767111793911,0.29712,89285.0,89264.0,0.01226459]
[1767111794113,0.03553784,89284.0,89264.0,0.01226459]
[1767111794356,0.03553784,89284.0,89264.0,0.28399459]
[1767111794932,0.0114,89284.0,89264.0,0.28399459]
[1767111799308,0.2427,89291.0,89265.0,0.27517]
[1767111799510,0.2427,89291.0,89270.0,0.01120197]
[1767111799707,0.0114,89290.0,89271.0,0.27517]
[1767111799928,0.0114,89290.0,89272.0,0.0114]
[1767111802204,0.29642,89290.0,89272.0,0.0114]
[1767111802855,0.0114,89290.0,89273.0,0.27517]
[1767111803200,0.28502,89289.0,89272.0,0.0114]
[1767111803647,0.2427,89291.0,89289.0,0.000549]
[1767111803873,0.2429,89293.0,89291.0,0.00055]
[1767111804071,0.2429,89293.0,89283.0,0.0114]
[1767111804270,0.2429,89293.0,89283.0,0.28657]
[1767111804988,0.0002,89293.0,89283.0,0.28657]
[1767111806452,0.29642,89302.0,89283.0,0.28657]
[1767111806678,0.29652641,89302.0,89283.0,0.0116]
[1767111807683,0.29652641,89302.0,89283.0,0.0119381]
[1767111807883,0.28502,89299.0,89283.0,0.0119381]
[1767111808430,0.28502,89297.0,89272.0,0.0004021]
[1767111808631,0.28502,89281.0,89272.0,2.1e-06]
[1767111808849,0.34102464,89279.0,89261.0,0.0002]
[1767111808988,0.79058316,89271.0,89261.0,0.0002]
[1767111809185,0.28502,89270.0,89261.0,0.0002]
[1767111809365,0.28502,89270.0,89257.0,0.0114]
[1767111809572,0.28522,89261.0,89244.0,0.32001]
[1767111809817,0.28522,89261.0,89222.0,0.06008485]
[1767111809818,0.28502,89259.0,89235.0,0.28657]
[1767111810034,0.28502,89256.0,89248.0,2.1e-06]
[1767111810239,0.28502,89256.0,89235.0,0.0114]
[1767111810459,0.28502,89256.0,89235.0,0.01150637]
[1767111811274,0.28502,89256.0,89235.0,0.28667637]
[1767111812036,0.0114,89260.0,89235.0,0.28667637]
[1767111812340,0.0114,89260.0,89236.0,0.28637623]
[1767111812580,0.0114,89260.0,89236.0,0.27517]
[1767111812581,0.28502,89259.0,89236.0,0.27517]
[1767111812932,0.28502,89259.0,89235.0,0.01150637]
[1767111813133,0.79058316,89250.0,89235.0,0.00010637]
[1767111813341,0.28502,89249.0,89235.0,0.00010637]
[1767111814161,0.0114,89251.0,89235.0,0.00010637]
[1767111815013,0.28502,89266.0,89224.0,0.0004021]
[1767111815226,0.28502,89257.0,89225.0,0.27517]
[1767111815351,0.28502,89255.0,89225.0,0.27517]
[1767111815559,0.28502,89249.0,89225.0,0.27517]
[1767111815890,0.28502,89247.0,89225.0,0.27517]
[1767111817312,0.28502,89224.0,89202.0,0.01121051]
[1767111817485,9.4e-05,89225.0,89224.0,0.000455]
[1767111817683,0.0114,89228.0,89216.0,0.27517]
[1767111817992,0.0114,89228.0,89215.0,0.0114]
[1767111818434,0.010945,89228.0,89215.0,0.0114]
[1767111818594,0.01105136,89228.0,89215.0,0.0114]
[1767111819202,0.28502,89249.0,89215.0,0.0114]
[1767111819408,0.0114,89248.0,89228.0,0.27517]
[1767111819606,0.0114,89248.0,89228.0,0.28657]
[1767111819816,0.28502,89256.0,89231.0,0.27517]
[1767111820018,0.28502,89266.0,89248.0,0.00055]
[1767111820215,0.044386,89265.0,89248.0,0.00055]
[1767111820419,0.28502,89264.0,89246.0,0.0114]
[1767111820621,0.28502,89264.0,89231.0,0.27517]
[1767111820819,0.28502,89264.0,89195.0,0.44868723]
[1767111820820,0.000549,89246.0,89232.0,0.0114]
[1767111821138,0.28502,89257.0,89233.0,0.28657]
[1767111821318,0.31362855,89257.0,89233.0,0.28657]
[1767111821517,0.00010655,89257.0,89233.0,0.29777661]
[1767111822080,0.00010655,89257.0,89233.0,0.28657]
[1767111822318,0.00010655,89257.0,89235.0,0.27517]
[1767111823668,0.0114,89263.0,89241.0,0.27517]
[1767111823869,0.0003551,89263.0,89248.0,0.27517]
[1767111824117,0.0003551,89263.0,89250.0,0.79058316]
[1767111824281,0.0114,89279.0,89263.0,0.000355]
[1767111824627,0.29642,89279.0,89259.0,0.27517]
[1767111825202,0.29642,89279.0,89250.0,0.79058316]
[1767111825203,0.29642,89279.0,89260.0,0.0114]
[1767111825609,0.000549,89260.0,89238.0,0.27517]